Workbook

Sheet Index (hidden)
B2: INFORMATION DISCLOSURE REQUIREMENTS
C4: TABLE OF CONTENTS
C5: for the year ended [type here]
B7: TYPE | C7: PROFORMA STATEMENT | D7: STATEMENT NUMBER | E7: PAGE
B8: Regulatory Financial Statements
C9: Income Statement | D9: RFS Inc | E9: 1
B11: Disaggregation Statements
C12: Income Statement | D12: DISAGG Inc | E12: 2
B14: Workpapers supporting the Disaggregation Statements:
C15: Operations and maintenance expenditure | D15: DISAGG Opex | E15: 3
C16: Causal allocations | D16: DISAGG Aloc1 | E16: 4
C17: Non-causal allocations | D17: DISAGG Aloc2 | E17: 5
B19: Prescribed Transmission Services
C20: Regulatory adjustment journals | D20: PTS Adj | E20: 6
C22: Price reduction/recovery | D22: PTS PriceRedn | E22: 7
C24: Discount | D24: PTS Disc | E24: 8
C26: Revenue analysis | D26: PTS Rev | E26: 9
B28: Asset schedules and supporting papers:
B29: Prescribed Transmission Services | C29: Asset Aging Schedule | D29: PTS Asset Aging | E29: 10
B31: Provisions Schedules:
B32: Disaggregation Statements | C32: Provisions Summary | D32: DISAGG ProvSum | E32: 11
C33: Provisions Reconciliation | D33: PTS ProvRec | E33: 12
B35: Other Information
C36: Related Party Transactions | D36: Inf Rel Part Trans | E36: 13
C37: Revenue Reconciliation | D37: Inf Rev Rec | E37: 14
B39: Non-financial Schedules
C40: Current Map of the Network | D40: NFS Curr Map Netw | E40: na
B42: Historic Operating Expenditure (Opex)
C43: Historic Opex by Category - Summary | D43: HOE Sum | E43: 15
C44: Historic Opex by Category base year | D44: HOE Base | E44: 16
C45: Historic Opex by Category 1st FY | D45: HOE 1st FY | E45: 17
C46: Historic Opex by Category 2nd FY | D46: HOE 2ndt FY | E46: 18
C47: Historic Opex by Category 3rd FY | D47: HOE 3rdt FY | E47: 19
C48: Historic Opex by Category 4th FY | D48: HOE 4th FY | E48: 20
C49: Historic Opex by Category 5th FY | D49: HOE 5th FY | E49: 21
B51: Historic Capital Expenditure (Capex)
C52: Historic Capex by Category | D52: HCE Cat | E52: 22
C53: Historic Capex by Asset Class | D53: HCE Ass Cls | E53: 23
C54: Historic Capex - Network | D54: HCE Netw | E54: 24
C55: Historic Capex - Non-Network | D55: HCE Non Netw | E55: 25
B57: Commentary
C58: Commentary on Opex | D58: Comm Opex | E58: 26
C59: Commentary on Historic Capex | D59: Comm Hist Capex | E59: 27
B61: Instructions
C62: Opex Instructions | D62: Ins Opex | E62: 28
C63: Historic Capex Instructions | D63: Ins Capex | E63: 29

Sheet RFS Inc
A1: Powerlink
A2: INCOME STATEMENT - PRESCRIBED TRANSMISSION SERVICES
A7: for the period ended: | C7: 30 June 2018
A9: Account code or reference to Account Code | C9: Description | D9: Disaggregation Statement - Prescribed Transmission Services | E9: Journal number | F9: Regulatory adjustments | G9: Regulatory financial statements | H9: Support reference
D10: $'000 | F10: $'000 | G10: $'000
F11: Dr/(Cr)
B13: Network Charges | D13: ='DISAGG Inc'!F12 -> 810828 | G13: =D13+F13 -> 810828
B14: Grid Support Under Recovery Accrual | D14: ='DISAGG Inc'!F13 -> 0
B15: External Project Work | D15: ='DISAGG Inc'!F14 -> 0
B16: Other Revenue | D16: ='DISAGG Inc'!F15 -> 0
C17: Customer Works | D17: ='DISAGG Inc'!F16 -> 0
C18: Other | D18: ='DISAGG Inc'!F17 -> 5024 | E18: 2018-01 | F18: -4907.06789 | G18: =D18+F18 -> 116.93211
B20: Total Revenue | D20: =SUM(D12:D19) -> 815852 | F20: =SUM(F12:F19) -> -4907.06789 | G20: =SUM(G12:G19) -> 810944.9321
B23: Opex Costs
B24: - | C24: Network Operations | D24: ='DISAGG Inc'!F21 -> 14800 | G24: =D24+F24 -> 14800
B25: - | C25: Network Maintenance | D25: ='DISAGG Inc'!F22 -> 111604 | G25: 111604
B26: - | C26: Corporate / Business Support | D26: ='DISAGG Inc'!F23 -> 52556 | G26: 52556
B27: - | C27: Insurance and Self Insurance | D27: ='DISAGG Inc'!F24 -> 14051 | E27: 2018-01 | F27: -5897.98691 | G27: 8153.01309
B28: - | C28: Debt Management Costs | D28: ='DISAGG Inc'!F25 -> 501 | G28: 501
B29: - | C29: Grid Support | D29: ='DISAGG Inc'!F26 -> 0 | G29: 0
B30: - | C30: Other Costs | D30: ='DISAGG Inc'!F27 -> 0 | G30: 0
B31: Depreciation | D31: ='DISAGG Inc'!F28 -> 302021 | G31: 302021
B32: Net Loss/(Gain) on Disposal of Property, Plant & Equipment | D32: ='DISAGG Inc'!F29 -> -306 | G32: -306
B33: Total Operating Costs | D33: =SUM(D24:D32) -> 495227 | F33: =SUM(F24:F32) -> -5897.98691 | G33: =SUM(G24:G32) -> 489329.0131
B35: Earnings before Interest and Tax (EBIT) | D35: =D20-D33 -> 320625 | F35: =F20-F33 -> 990.9190198 | G35: =G20-G33 -> 321615.919
B37: Taxation
A40: Note: The above numbers have been derived from Powerlink Queensland's financial reporting systems.
A42: Note:
A43: In addition it is mandatory to produce for each cost or revenue item that has been allocated to the Prescribed Services Segment a supporting workpaper that includes the following:
A44: a) the amounts that have been directly attributed to the Prescribed Services Segment
A45: b) the amounts that have been allocated to each Prescribed Services Segment
A46: c) a description of the allocation basis
A47: d) the numeric quantity of each allocator.

Sheet DISAGG Inc
A1: Powerlink
A2: DISAGGREGATION STATEMENT - INCOME
A7: for the period ended: | C7: 30 June 2018
A9: Account code or reference to Account Code | C9: Description | D9: Audited financial statements | F9: Prescribed Transmission Services | G9: Negotiated Transmission Services | H9: Non-Regulated Transmission Services | I9: Not Allocated | J9: Workpaper reference
D10: $'000 | F10: $'000 | G10: $'000 | H10: $'000 | I10: $'000
B12: Network Charges | D12: 987706 | F12: 810828
B13: Grid Support Under Recovery Accrual
B14: External Project Work
B15: Other Revenue
C16: Customer Works | D16: 12076 | F16: 0
C17: Other | D17: 17969 | F17: 5024
B18: Total Revenue | D18: 1017751 | F18: 815852
B20: Opex Costs
B21: - | C21: Network Operations | D21: 16424 | F21: 14800
B22: - | C22: Network Maintenance | D22: 119236 | F22: 111604
B23: - | C23: Corporate / Business Support | D23: 62155 | F23: 52556
B24: - | C24: Insurance and Self Insurance | D24: 14051 | F24: 14051
B25: - | C25: Debt Management Costs | D25: 501 | F25: 501
B26: - | C26: Grid Support | D26: 0 | F26: 0
B27: - | C27: Other Costs | D27: 10980 | F27: 0
B28: Depreciation | D28: 334758 | F28: 302021
B29: Net Loss/(Gain) on Disposal of Property, Plant & Equipment | D29: -306 | F29: -306
B30: Total Operating Costs | D30: 557799 | F30: 495227
B32: Earnings before Interest and Tax (EBIT) | D32: 459952 | F32: 320625
B34: Interest and Dividend Income | D34: 8052 | I34: 8052
B35: Finance Charges | D35: -224898 | I35: -224898
B36: Share of Net Profit/(Loss) of Associates
B37: Profit(loss) before Income Tax Expense | D37: 243106
B39: Australian income tax expense | D39: 90930 | I39: 90930
B40: Deferred income tax | D40: -15149 | I40: -15149
B41: Other income tax | I41: 0
B45: Profit(loss) after income tax expense | D45: 167325
B47: Dividends Provided for / Paid | D47: 217325 | I47: 217325
B48: Retained Earnings Adjustments | D48: 23776 | I48: 23776
B49: Retained Profit(Loss) | D49: -26224
A52: Note: The above numbers have been derived from Powerlink Queensland's financial reporting systems.
A53: Note:
A54: In addition it is mandatory to produce for each cost or revenue item that has been allocated to the Prescribed Services Segment a supporting workpaper that includes the following:
A55: a) the amounts that have been directly attributed to the Prescribed Services Segment
A56: b) the amounts that have been allocated to the Prescribed Services Segment
A57: c) a description of the allocation basis
A58: d) the numeric quantity of each allocator.

Sheet DISAGG Opex
A1: Powerlink
A2: OPERATIONS AND MAINTENANCE EXPENDITURE
A7: for the period ended: | D7: ='RFS Inc'!C7 -> 30 June 2018
A9: Account code or reference to account code | D9: Account Heading | G9: Ticks to indicate which rows are intersegmental costs | I9: Prescribed Transmission Services | J9: Negotiated Transmission Services | K9: Non-Regulated Transmission Services | L9: Not Allocated | M9: Total
I10: $'000 | J10: $'000 | K10: $'000 | L10: $'000 | M10: $'000
D12: Directly Attributed Costs
D13: Network Operations | I13: 14800 | M13: 16424
D14: Network Maintenance | I14: 111604 | M14: 119236
D15: Corporate / Business Support | I15: 52556 | M15: 53086
D16: Insurance and Self Insurance | I16: 8153.01309 | M16: 8153.01309
D17: Debt Management Costs | I17: 501 | M17: 501
D18: Grid Support | I18: 0 | M18: 0
D19: Other Costs | I19: 0 | M19: 10980
D20: Depreciation | I20: 302021 | M20: 334758
D21: Net Loss/(Gain) on Disposal of Property, Plant & Equipment | I21: -306 | M21: -306
G22: Subtotal of Directly Attributed costs | I22: 489329.0131 | L22: =SUM(L13:L21) -> 0 | M22: 542832.0131
D26: Allocated Costs | E26: Basis of allocation | G26: Work paper Ref.
D27: Network Operations | E27: Causal | I27: 0 | L27: ='DISAGG Aloc1'!G23 -> 0 | M27: 0
D28: Network Maintenance | E28: Causal | I28: 0 | L28: ='DISAGG Aloc1'!G24 -> 0 | M28: 0
D29: Corporate / Business Support | E29: Causal | G29: DISAGG Aloc1 | I29: 0 | L29: ='DISAGG Aloc1'!G25 -> 0 | M29: 9069
G33: Subtotal of Allocated costs | I33: 0 | L33: =SUM(L27:L32) -> 0 | M33: 9069
G36: Total Opex Costs per DISAGG Fperf 1 | I36: 489329.0131 | L36: =L22+L33 -> 0
L40: Total | M40: 551901.0131
A43: Explanation of opex costs required by the Commission (for example, bushfire costs, insurance etc)
C48: 1 Including Regulatory Adjustments as per RFS Inc
C49: * | D49: Delete as appropriate
C50: ** | D50: For each Account Heading item subject to Causal allocation, ensure that it is included on a workpaper Aloc 1
D51: For each Account Heading item subject to Non-Causal allocation, ensure that it is included on a workpaper Aloc 2
C52: Note: Where Intersegmental costs arise, the total costs of all Business Segments will be greater than the costs in the Base Accounts. This is why the reconciliation to the Base Accounts is required on this schedule.

Sheet DISAGG Aloc1
A1: Powerlink
A2: CAUSAL ALLOCATION
A7: for the period ended: | C7: ='RFS Inc'!C7 -> 30 June 2018
A9: A copy of this workpaper is to be produced for each Causal basis that has been used to allocate costs between Business Segments.
B11: 1. Causal basis of allocation | C11: GROSS BOOK VALUE
B13: 2. Complete the table set out below to indicate:
B14: - the Account Headings and the amounts subject to this Causal basis; and
B15: - the description and quanta of allocator that has been used
A17: Account code or reference to account code | B17: Account Heading | D17: Prescribed Transmission Services | E17: Negotiated Transmission Services | F17: Non-Regulated Transmission Services | G17: Not Allocated | H17: Total
D18: $'000 | E18: $'000 | F18: $'000 | G18: $'000 | H18: $'000
B22: Numeric quantity of allocator (eg no of man-hours) | H22: 1185705
B23: Network Operations | H23: 0
B24: Network Maintenance | H24: 0
B25: Corporate / Business Support | H25: 9069
D26: =SUM(D23:D25) -> 0 | G26: =SUM(G23:G25) -> 0 | H26: 9069
B30: 3. Provide a detailed description and explanation of the basis of allocation:
B32: Powerlink does not separately account for the above "Negotiated" and "Non-Regulated" Corporate / Business Support operating costs.
B33: These costs have been allocated on the basis of Opening Gross Book Value.

Sheet DISAGG Aloc2 (hidden)
A2: NON-CAUSAL ALLOCATION
A7: for the period ended: [type here]
A9: A copy of this workpaper is to be produced for each Non-causal basis that has been used to allocate costs between Business Segments.
B11: 1. Non-causal basis of allocation ………………………………………
B13: 2. Complete the table set out below to indicate the Account Headings and the amounts subject to this non-causal basis.
A15: Account code or reference to account code | B15: Account Heading | D15: Prescribed Transmission Services | E15: Negotiated Transmission Services | F15: Non-Regulated Transmission Services | G15: Not Allocated | H15: Total
D16: $'000 | E16: $'000 | F16: $'000 | G16: $'000 | H16: $'000
B18: (List all Account Headings that have been allocated on this basis)
B26: 3. Provide a detailed description and explanation of the basis of allocation:
B36: 4. Explain why no causal basis could be established:
B46: 5. Explain the reasons for choosing this non-causal basis and why it was preferred over others:
B56: 6. Date on which the Commission/AER granted approval:

Sheet PTS Adj
A1: Powerlink
A2: REGULATORY ADJUSTMENT JOURNALS - PRESCRIBED TRANSMISSION SERVICES
A7: for the period ended: | C7: ='RFS Inc'!C7 -> 30 June 2018
A9: Journal | B9: Account Debited | D9: Amount | F9: Supporting
A10: number | C10: Account Credited | D10: Debit | E10: Credit | F10: Statement
D11: $'000 | E11: $'000 | F11: No.
A14: 2018-01 | B14: Other Revenue | D14: 4907.06789
B15: Self Insurance Provision | D15: 990.9190198
C16: Insurance and Self Insurance | E16: 5897.98691
C18: Provision for self insurance has been provided in the Powerlink Queensland Transmission Network Revenue Cap 2017-18 to 2021-22. This provision has only been made in the regulatory accounts due to AASB 137 - Provisions, Contingent Liabilities and Contingent Assets not allowing any provision for unidentifiable or unmeasurable costs.
C19: Revenue disclosed in the Financial Statements includes insurance proceeds. For regulatory accounts, this is presented as an offset against self insurance costs.
A47: Note:
A48: This schedule must contain for each Regulatory Adjustment made on
A49: the Income Statement, the following:
A50: a) a journal entry showing accounts debited and credited
A51: b) an explanation of why the adjustment has been made.

Sheet PTS PriceRedn
A1: Powerlink
A2: PRICE REDUCTION/RECOVERY - PRESCRIBED TRANSMISSION SERVICES
A7: for the period ended: | B7: ='RFS Inc'!C7 -> 30 June 2018
B9: $'000 Customer TUOS | C9: $'000 Common service
B10: general charges | C10: charges
A11: Reduction in prices payable
A17: Total Reduction
A19: Recovery of above reduction in prices
A20: from other transmission customers 1
A24: Total Recovery
A27: Note:
A28: Each instance of a price reduction/recovery should be detailed.
A29: 1 The amount of any reduction in a transmission customer's Customer TUOS general charges
A30: and/or common service charges recovered from other transmission customers under clause 6A.26.1
A31: of the Rules.
A33: COMMENTS

Sheet PTS PDisc
A1: Powerlink
A2: PRUDENT DISCOUNTS - PRESCRIBED TRANSMISSION SERVICES
A7: for the period ended: | D7: ='RFS Inc'!C7 -> 30 June 2018
B12: Number of discounts recovered in previous year
A13: For each discount recovered:
B14: Date of AER approval, if given
B15: Expiry date
B16: Party receiving the discount
B17: Beneficiary of discount
B18: Amount of discount offered in previous year
B19: Amount recovered from the other custumers in previous year
B20: Load subject to discount (max, min, average)
A21: For each discount approved by the AER:
B22: Compliance with conditions - for each condition imposed provide information demonstrating that the condition has been met.
A26: For each discount recovered:
B27: Date of AER approval, if given
B28: Expiry date
B29: Party receiving the discount
B30: Beneficiary of discount
B31: Amount of discount offered in previous year
B32: Amount recovered from the other custumers in previous year
B33: Load subject to discount (max, min, average)
A34: For each discount approved by the AER:
B35: Compliance with conditions - for each condition imposed provide information demonstrating that the condition has been met.

Sheet DISAGG ProvSum
A1: Powerlink
A2: SUMMARY OF PROVISIONS
A7: for the period ended: | D7: ='RFS Inc'!C7 -> 30 June 2018
D9: Prescribed Transmission Services | E9: Negotiated Transmission Services | F9: Non-Regulated Transmission Services | G9: Not Allocated | H9: Total
D10: $'000 | E10: $'000 | F10: $'000 | G10: $'000 | H10: $'000
B12: Amount set aside to provisions | G12: 219514 | H12: =SUM(D12:G12) -> 219514
B14: Expenditure incurred debited to provisions | G14: -253462 | H14: =SUM(D14:G14) -> -253462
B16: Amounts written back from provisions | G16: -148 | H16: =SUM(D16:G16) -> -148
B18: Net movement in provisions | D18: =SUM(D12:D17) -> 0 | E18: 0 | F18: 0 | G18: =SUM(G12:G17) -> -34096 | H18: =SUM(H12:H17) -> -34096
B20: Balance at start of period | G20: 242976 | H20: =SUM(D20:G20) -> 242976
B22: Balance at end of period | G22: =SUM(G18:G21) -> 208880 | H22: =SUM(H18:H21) -> 208880
A25: Comprising:
B27: Current provisions | G27: 205568 | H27: =SUM(D27:G27) -> 205568
B28: Non-current provision | G28: 3312 | H28: 3312
C30: Total per balance sheet | G30: =SUM(G27:G29) -> 208880 | H30: =SUM(H27:H29) -> 208880
A42: Note:
A43: In addition it is mandatory to produce for each item that has been allocated to the Prescribed Services
A44: Segment a supporting workpaper that includes the following:
A45: a) the amounts that have been directly attributed to the Prescribed Services Segment
A46: b) the amounts that have been allocated to the Prescribed Services Segment
A47: c) a description of the allocation basis
A48: d) the numeric quantity of each allocator.
A50: The basis of attribution of provisions to the Prescribed Services Segment, should follow the attribution of the
A51: expenses to which they relate. Taxation, interest and dividend provisions should be attributed to the Not Allocated Segment.

Sheet INF RelPartTrans
A1: Powerlink
A2: RELATED PARTY TRANSACTIONS
A7: for the period ended: | B7: ='RFS Inc'!C7 -> 30 June 2018
A9: Details of related party | B9: Description of transaction | C9: Prescribed | D9: Procurement process | E9: Monetary value of transaction
E10: $'000
B12: Revenue
B13: - Sale of Goods and Services | C13: Part | D13: Competitive Process | E13: 747689
B14: - Dividend and Interest Income | C14: Part | D14: N/A | E14: 8044
B18: Expense
B19: - Purchases of Goods and Services | C19: Part | D19: Competitive Process | E19: 98844
B20: - Borrowing Costs | C20: Part | D20: N/A | E20: 224534
B24: Capital
A31: Balances with related parties at regulatory accounting date
E32: $'000
B34: Current assets
B35: - Receivables | E35: 51075
B36: - Advances | E36: 230770
B37: - Cash and cash equivalents | E37: 1224
B38: Non-current assets
B43: Total assets | E43: =SUM(E35:E42) -> 283069
B45: Current liabilities
B46: - Payables | E46: 831
B49: Non-current liabilities
B50: - Loans | E50: 5265221
B54: Total liabilities | E54: =SUM(E46:E53) -> 5266052
A56: Commitments with related parties at regulatory accounting period
A57: Value of commitments with related parties that are expected to result in related party transactions in future regulatory accounting periods:
C58: Recognised as liabilities | D58: Not recognised as liabilities | E58: Total
C59: $'000 | D59: $'000 | E59: $'000
B61: Payable:
B62: Not later than one year
B63: Later than one year and not later than five years
B64: Later than five years
B66: Total commitments

Sheet INF RevRec
A1: Powerlink
A2: REVENUE RECONCILIATION
A7: for the period ended: | D7: ='RFS Inc'!C7 -> 30 June 2018
B9: Description | D9: Unit type | E9: Unit
B12: CPI (March Tx) | D12: CPI – All Groups Weighted Average of 8 Capital Cities (ABS) | F12: N/A
B13: CPI (March Tx+1) | D13: As above | F13: N/A
B14: Change in CPI | D14: Per cent | F14: N/A
B15: X-factor | D15: Per cent | F15: N/A
B16: AR (Tx) | D16: $ | F16: N/A
B17: AR (Tx+1) | D17: $ | F17: 752668.9761
B18: S-factor (Tx) | D18: $+ | F18: 24004.305
B19: Under/over recovery AR (Tx) | D19: $+ | F19: N/A
B20: Revenue Cap Tx+1 | D20: $ | F20: 776673.2811

Sheet Hist Capex by Asset Class
A1: Powerlink
B2: HISTORIC CAPEX by asset class
A9: for the period ended: | C9: ='RFS Inc'!C7 -> 30 June 2018
A12: Actual Gross Capital Expenditure – As Incurred ($m Nominal)
D13: Year | E13: Year-1 | F13: Year 1 | G13: Year 2 | H13: Year 3 | I13: Year 4 | J13: Year 5
A14: Asset Class
B15: Transmission Lines - Overhead | E15: 1.260500493 | F15: 7.969889039
B16: Transmission Lines - Underground | E16: -0.01873578332 | F16: 0
B17: Transmission Lines - Refit | E17: 43.00495081 | F17: 66.4970433
B18: Substations Primary Plant | E18: 51.71313463 | F18: 37.4602189
B19: Substations Secondary Systems | E19: 36.48338677 | F19: 20.71348438
B20: Communications Other Assets | E20: 2.132691562 | F20: 1.285737888
B21: Comms - Civil Works | E21: 0 | F21: 0
B22: Network Switching Centres | E22: 0.1775507366 | F22: 0.02016517025
B23: Land | E23: 0.1025998622 | F23: 0.03494705605
B24: Easements | E24: 5.934054971 | F24: -0.2821505088
B25: Commercial Buildings | E25: 1.257774239 | F25: 1.139009139
B26: Computer Equipment | E26: 23.06943228 | F26: 11.16272234
B27: Office Furniture & Miscellaneous | E27: 0 | F27: 0
B28: Office Machines | E28: 0 | F28: 0
B29: Vehicles | E29: 1.259315765 | F29: 2.918850382
B30: Moveable Plant | E30: 1.489235445 | F30: 0.8672752388
B31: Insurance Spares | E31: 0 | F31: 0 | K31: Total Yrs 1-5 | L31: Total
D32: Sub total | E32: =SUM(E15:E31) -> 167.8658918 | F32: =SUM(F15:F31) -> 149.7871923 | G32: 0 | H32: 0 | I32: =SUM(I15:I31) -> 0 | J32: =SUM(J15:J31) -> 0 | K32: =SUM(F32:J32) -> 149.7871923 | L32: =SUM(E32:J32) -> 317.6530841
A34: Notes: - Exclude half year rate of return. Inputs are assumed to be in middle of year terms because actual capex is reported evenly over a financial year. - The asset classes inputed by each TNSP must be the same as those used in the RFM/PTRM. - Yr -1 is the final year of the previous regulatory control period. - Capex should be adjusted for any movements in capitalised provisions and be net of customer contributions. Where relevant please note the amount of any customer contributions excluded. - TNSPs are to update capex as incurred for previous years of the regulatory control period to reflect any movements that may have occurred (e.g. due to the final commissioning of assets). When this information is updated TNSPs must also note the reason for the movement. - Where capex related to Network Capability Incentive Parameter Action Plan (NCIPAP) projects has been incurred and reported across asset classes, the total amount for each project should be noted.
A38: Actual Asset Disposal – As Incurred ($m Nominal)
D39: Year | E39: Year -1 | F39: Year 1 | G39: Year 2 | H39: Year 3 | I39: Year 4 | J39: Year 5
A40: Asset Class
B41: Transmission Lines - Overhead | E41: 0 | F41: 0
B42: Transmission Lines - Underground | E42: 0 | F42: 0
B43: Transmission Lines - Refit | E43: 0 | F43: 0
B44: Substations Primary Plant | E44: 0 | F44: 0
B45: Substations Secondary Systems | E45: 0 | F45: 0
B46: Communications Other Assets | E46: 0 | F46: 1.533491
B47: Comms - Civil Works | E47: 0 | F47: 0
B48: Network Switching Centres | E48: 0 | F48: 0
B49: Land | E49: 0.4 | F49: 0.25454545
B50: Easements | E50: 0 | F50: 0
B51: Commercial Buildings | E51: 0 | F51: 0
B52: Computer Equipment | E52: 0 | F52: 0
B53: Office Furniture & Miscellaneous | E53: 0 | F53: 0
B54: Office Machines | E54: 0 | F54: 0
B55: Vehicles | E55: 0.60088181 | F55: 0.58773632
B56: Moveable Plant | E56: 0 | F56: 0
B57: Insurance Spares | E57: 0 | F57: 0 | K57: Total Yrs 1-5 | L57: Total
D58: Sub total | E58: =SUM(E41:E57) -> 1.00088181 | F58: =SUM(F41:F57) -> 2.37577277 | G58: =SUM(G41:G57) -> 0 | H58: =SUM(H41:H57) -> 0 | I58: =SUM(I41:I57) -> 0 | J58: 0 | K58: =SUM(F58:J58) -> 2.37577277 | L58: =SUM(E58:J58) -> 3.37665458
A60: Notes: - Exclude half year rate of return. Inputs are assumed to be in middle of year terms because actual disposal is reported evenly over a financial year. - The asset classes inputed by each TNSP must be the same as those used in the RFM/PTRM. - Yr -1 is the final year of the previous regulatory control period.
A66: Actual Gross Capital Expenditure – As Commissioned ($m Nominal)
D67: Year | E67: Year -1 | F67: Year 1 | G67: Year 2 | H67: Year 3 | I67: Year 4 | J67: Year 5
A68: Asset Class
B69: Transmission Lines - Overhead | E69: 0.6295248196 | F69: 8.686991315
B70: Transmission Lines - Underground | E70: 0 | F70: 0
B71: Transmission Lines - Refit | E71: 16.0528829 | F71: 0.0921995234
B72: Substations Primary Plant | E72: 36.43802287 | F72: 37.64106353
B73: Substations Secondary Systems | E73: 63.66849102 | F73: 31.36519073
B74: Communications Other Assets | E74: 6.07199818 | F74: 1.286491712
B75: Comms - Civil Works | E75: 0.04827027371 | F75: 0.02512616598
B76: Network Switching Centres | E76: 0 | F76: 0
B77: Land | E77: -0.7984707776 | F77: 0.003123646641
B78: Easements | E78: 11.36161567 | F78: 3.524927142
B79: Commercial Buildings | E79: 5.702931712 | F79: 2.347411343
B80: Computer Equipment | E80: 14.6902533 | F80: 30.79604747
B81: Office Furniture & Miscellaneous | E81: 0 | F81: 0.001165711856
B82: Office Machines | E82: 2.972644356 | F82: 0.3777337107
B83: Vehicles | E83: 1.408888614 | F83: 2.869655125
B84: Moveable Plant | E84: 1.135357063 | F84: 1.874394357
B85: Insurance Spares | E85: 0 | F85: 0 | K85: Total Yrs 1-5 | L85: Total
D86: Sub total | E86: =SUM(E69:E85) -> 159.38241 | F86: =SUM(F69:F85) -> 120.8915215 | G86: =SUM(G69:G85) -> 0 | H86: =SUM(H69:H85) -> 0 | I86: =SUM(I69:I85) -> 0 | J86: 0 | K86: =SUM(F86:J86) -> 120.8915215 | L86: =SUM(E86:J86) -> 280.2739315
A88: Notes: - Exclude half year rate of return. Inputs are assumed to be in middle of year terms because actual capex is reported evenly over a financial year. - The asset classes inputed by each TNSP must be the same as those used in the RFM/PTRM. - Yr -1 is the final year of the previous regulatory control period. - Capex should be adjusted for any movements in capitalised provisions and be net of customer contributions. Where relevant please note the amount of any customer contributions excluded. - Where capex related to Network Capability Incentive Parameter Action Plan (NCIPAP) projects has been incurred and reported across asset classes, the total amount for each project should be noted.
A93: Actual Asset Disposal – As De-Commissioned ($m Nominal)
D94: Year | E94: Year -1 | F94: Year 1 | G94: Year 2 | H94: Year 3 | I94: Year 4 | J94: Year 5
A95: Asset Class
B96: Transmission Lines - Overhead | E96: 0 | F96: 0
B97: Transmission Lines - Underground | E97: 0 | F97: 0
B98: Transmission Lines - Refit | E98: 0 | F98: 0
B99: Substations Primary Plant | E99: 0 | F99: 0
B100: Substations Secondary Systems | E100: 0 | F100: 0
B101: Communications Other Assets | E101: 0 | F101: 1.533491
B102: Comms - Civil Works | E102: 0 | F102: 0
B103: Network Switching Centres | E103: 0 | F103: 0
B104: Land | E104: 0.4 | F104: 0.25454545
B105: Easements | E105: 0 | F105: 0
B106: Commercial Buildings | E106: 0 | F106: 0
B107: Computer Equipment | E107: 0 | F107: 0
B108: Office Furniture & Miscellaneous | E108: 0 | F108: 0
B109: Office Machines | E109: 0 | F109: 0
B110: Vehicles | E110: 0.60088181 | F110: 0.58773632
B111: Moveable Plant | E111: 0 | F111: 0
B112: Insurance Spares | E112: 0 | F112: 0 | K112: Total Yrs 1-5 | L112: Total
D113: Sub total | E113: =SUM(E96:E112) -> 1.00088181 | F113: =SUM(F96:F112) -> 2.37577277 | G113: =SUM(G96:G112) -> 0 | H113: =SUM(H96:H112) -> 0 | I113: =SUM(I96:I112) -> 0 | J113: 0 | K113: =SUM(F113:J113) -> 2.37577277 | L113: =SUM(E113:J113) -> 3.37665458
A115: Notes: - Exclude half year rate of return. Inputs are assumed to be in middle of year terms because actual disposal is reported evenly over a financial year. - The asset classes inputed by each TNSP must be the same as those used in the RFM/PTRM. - Yr -1 is the final year of the previous regulatory control period.

Sheet Hist Capex - Non-Network
A1: Powerlink
B2: HISTORIC CAPEX - NON-NETWORK- by project
A11: for the period ended: | C11: ='RFS Inc'!C7 -> 30 June 2018
A14: $M nominal
F15: Yearly expenditure by project (exclusive of FDC)
A17: Project ID | B17: Project Description | C17: Commissioning Date | D17: Category^ | F17: Any Part Year | G17: Year 1 | H17: Year 2 | I17: Year 3 | J17: Year 4 | K17: Year 5 | L17: TOTAL | N17: REASON FOR PROJECT | O17: Reg Test / Business Case (Y/N) | P17: Reg Test / Business Case Cost Estimate | Q17: Reason for Variance from Cost Estimate / Expected Commissioning Date
D18: IT | G18: 0.65746154 | L18: =SUM(F18:K18) -> 0.65746154 | N18: Obsolescence/Strategic | O18: Bus Case
D19: IT | G19: 1.13835813 | L19: =SUM(F19:K19) -> 1.13835813 | N19: Obsolescence/Strategic | O19: Bus Case
D20: IT | G20: 0.66404638 | L20: 0.66404638 | N20: Operational | O20: Bus Case
D21: IT | G21: 0.64424983 | L21: 0.64424983 | N21: Operational | O21: Bus Case
D22: IT | G22: 0.51454351 | L22: 0.51454351 | N22: Operational | O22: Bus Case
D23: IT | G23: 0.2536122 | L23: 0.2536122 | N23: Age/Condition/Obsolescence | O23: Bus Case
D24: IT | G24: 0.59544076 | L24: 0.59544076 | N24: Operational | O24: Bus Case
D25: IT | G25: 0.30249963 | L25: 0.30249963 | N25: Operational | O25: Bus Case
D26: IT | G26: 0.32000828 | L26: 0.32000828 | N26: Obsolescence/Strategic | O26: Bus Case
D27: IT | G27: 0.89896495 | L27: 0.89896495 | N27: Operational | O27: Bus Case
D28: IT | G28: 1.15941428 | L28: 1.15941428 | N28: Age/Condition/Obsolescence | O28: Bus Case
D29: IT | G29: 1.09637096 | L29: 1.09637096 | N29: Security | O29: Bus Case
D30: IT | G30: 0.62684628 | L30: 0.62684628 | N30: Security | O30: Bus Case
D31: IT | G31: 0.53133281 | L31: 0.53133281 | N31: Obsolescence/Strategic | O31: Bus Case
D32: IT | G32: 0.86044011 | L32: 0.86044011 | N32: Obsolescence/Strategic | O32: Bus Case
D33: IT | G33: 0.66185559 | L33: 0.66185559
D34: IT | G34: 0.25418836 | L34: 0.25418836
D35: MV | G35: 2.92327237 | L35: 2.92327237 | N35: Annual Cycle
D36: Buildings | G36: 1.14073471 | L36: 1.14073471 | N36: Age/Condition/Obsolescence
D37: Land | G37: 0 | L37: 0
D38: Tools | G38: 0.86858914 | L38: 0.86858914 | N38: Additional requirements
L39: 0
L40: 0
L41: 0
L42: 0
L43: 0
L44: 0
L45: 0
L46: 0
L47: 0
L48: 0
L49: 0
L50: 0
L51: 0
L52: 0
L53: 0
L54: 0
L55: 0
L56: 0
L57: 0
L58: 0
L59: 0
L60: 0
L61: 0
L62: 0
L63: 0
L64: 0
L65: 0
L66: 0
L67: 0
L68: 0
L69: 0
L70: 0
L71: 0
L72: 0
L73: 0
L74: 0
L75: 0
L76: 0
L77: 0
L78: 0
L79: 0
L80: 0
L81: 0
L82: 0
L83: =SUM(F83:K83) -> 0
L84: 0
L85: 0
L86: 0
L87: 0
L88: 0
L89: 0
L90: 0
L91: 0
L92: 0
L93: 0
L94: 0
L95: 0
L96: 0
L97: 0
L98: 0
L99: 0
L100: 0
L101: 0
L102: 0
L103: 0
L104: 0
L105: 0
L106: 0
F108: Subtotal | G108: =SUM(G18:G106) -> 16.11222982 | H108: =SUM(H18:H106) -> 0 | I108: 0 | J108: 0 | K108: 0 | L108: 16.11222982
D110: ^refers to Categories (e.g Augmentation, Replacement, etc) as defined in “Historic Capex Instructions” worksheet | J110: *Note that values in these columns are estimates only
